fUSD/lending_fUSD_20250115
["ID","MTS","AMOUNT","RATE_DAILY","PERIOD"]
[348964571,1736899848806,-150.0,0.000122,2]
[348964572,1736899848815,-511.1827662,0.000122,2]
[348964573,1736899848835,-257.0586608,0.000122,2]
[348964574,1736899848844,-12783.91791357,0.000122,2]
[348964575,1736899848855,-566.84138598,0.000122,2]
[348964576,1736899849140,-934.81,0.00011255,2]
[348964577,1736899849151,-934.81,0.00011529,2]
[348964578,1736899849162,-934.81,0.00011803,2]
[348964579,1736899849171,-934.81,0.00012077,2]
[348964580,1736899849182,-2507.62665753,0.000122,2]
[348964581,1736899849192,-161.83858765,0.000122,2]
[348964582,1736899849203,-172.04835509,0.000122,2]
[348964583,1736899849213,-869.40768913,0.000122,2]
[348964584,1736899849732,-291.69475318,0.00011255,2]
[348964585,1736899849742,-500.0,0.00011256,2]
[348964586,1736899849753,-150.0,0.00012053,2]
[348964587,1736899849762,-150.0,0.00012067,2]
[348964588,1736899849772,-150.0,0.00012078,2]
[348964589,1736899849783,-150.0,0.00012119,2]
[348964590,1736899849792,-150.0,0.00012197,2]
[348964591,1736899849803,-376.85876266,0.000122,2]
[348964592,1736899849813,-500.0,0.00012201,2]
[348964593,1736899849823,-500.0,0.00012201,2]
[348964594,1736899849834,-500.0,0.00012202,2]
[348964595,1736899849844,-500.0,0.00012202,2]
[348964596,1736899849853,-500.0,0.00012202,2]
[348964597,1736899849863,-200.0,0.00012202,2]
[348964598,1736899849872,-1500.0,0.00012202,2]
[348964599,1736899849882,-150.0,0.00012202,2]
[348964600,1736899849892,-150.0,0.00012206,2]
[348964601,1736899849904,-150.0,0.00012207,2]
[348964602,1736899849915,-150.0,0.00012207,2]
[348964603,1736899849925,-150.0,0.00012208,2]
[348964604,1736899849935,-150.0,0.00012209,2]
[348964605,1736899849945,-150.0,0.00012209,2]
[348964606,1736899849955,-150.0,0.00012211,2]
[348964607,1736899849968,-150.0,0.00012211,2]
[348964608,1736899849978,-150.0,0.00012212,2]
[348964609,1736899849987,-150.0,0.00012213,2]
[348964610,1736899849997,-150.0,0.00012215,2]
[348964611,1736899850007,-1500.0,0.00012215,2]
[348964612,1736899850018,-602.90799268,0.00012219,2]
[348964613,1736899850115,-150.0,0.00012065,2]
[348964614,1736899850125,-897.09200732,0.00012219,2]
[348964615,1736899850135,-150.0,0.00012221,2]
[348964616,1736899850146,-150.0,0.00012223,2]
[348964617,1736899850155,-150.0,0.00012223,2]
[348964618,1736899850164,-181.81947568,0.00012227,2]
[348964619,1736899850174,-150.50152616,0.00012229,2]
[348964620,1736899850183,-150.0,0.00012231,2]
[348964621,1736899850194,-150.0,0.00012231,2]
[348964622,1736899850204,-1500.0,0.00012232,2]
[348964623,1736899850214,-150.0,0.00012233,2]
[348964624,1736899850223,-1500.0,0.00012234,2]
[348964625,1736899850233,-150.0,0.00012234,2]
[348964626,1736899850243,-150.0,0.00012235,2]
[348964627,1736899850253,-1500.0,0.00012236,2]
[348964628,1736899850263,-150.0,0.00012237,2]
[348964629,1736899850273,-150.0,0.00012239,2]
[348964630,1736899850283,-150.0,0.00012239,2]
[348964631,1736899850293,-150.0,0.00012239,2]
[348964632,1736899850302,-150.0,0.0001224,2]
[348964633,1736899850312,-150.0,0.00012242,2]
[348964634,1736899850321,-150.0,0.00012242,2]
[348964635,1736899850333,-150.0,0.00012244,2]
[348964636,1736899850344,-150.0,0.00012244,2]
[348964637,1736899850353,-1397.04121562,0.00012245,2]
[348964638,1736899850363,-150.0,0.00012248,2]
[348964639,1736899850373,-150.0,0.00012248,2]
[348964640,1736899850383,-150.0,0.0001225,2]
[348964641,1736899850392,-1500.0,0.00012251,2]
[348964642,1736899850404,-1500.0,0.00012251,2]
[348964643,1736899850415,-150.0,0.00012251,2]
[348964644,1736899850425,-848.74873569,0.00012257,2]
[348964645,1736899850436,-150.0,0.00012259,2]
[348964646,1736899850446,-150.0,0.0001226,2]
[348964647,1736899850456,-1500.0,0.00012261,2]
[348964648,1736899850465,-150.0,0.00012261,2]
[348964649,1736899850476,-1500.0,0.00012261,2]
[348964650,1736899850485,-150.0,0.00012266,2]
[348964651,1736899850494,-150.0,0.00012269,2]
[348964652,1736899850503,-1500.0,0.0001227,2]
[348964653,1736899850513,-1500.0,0.00012275,2]
[348964654,1736899850523,-150.0,0.00012275,2]
[348964655,1736899850534,-150.0,0.00012275,2]
[348964656,1736899850544,-150.0,0.00012276,2]
[348964657,1736899850554,-150.0,0.00012278,2]
[348964658,1736899850564,-2514.10429147,0.0001228,2]
[348964659,1736899850573,-150.0,0.0001228,2]
[348964660,1736899850584,-1500.0,0.00012282,2]
[348964661,1736899850593,-150.0,0.00012282,2]
[348964662,1736899850603,-3154.1416958,0.00012292,2]
[348964663,1736899850612,-1527.3002526,0.00012292,2]
[348964664,1736899850622,-1654.3570345,0.00012292,2]
[348964665,1736899850632,-208.4571049,0.00012292,2]
[348964666,1736899850642,-500.0,0.00012296,2]
[348964667,1736899850652,-500.0,0.00012296,2]
[348964668,1736899850662,-500.0,0.00012296,2]
[348964669,1736899850671,-500.0,0.00012296,2]
[348964670,1736899850681,-500.0,0.00012296,2]
[348964671,1736899850691,-500.0,0.00012296,2]
[348964672,1736899850703,-500.0,0.00012296,2]
[348964673,1736899850713,-500.0,0.00012296,2]
[348964674,1736899850724,-454008.47442156,0.00012297,5]
[348964676,1736899950896,150.0,0.00019059,120]
[348964677,1736900201631,203.04,8.636e-05,2]
[348964684,1736900880148,787365.03307009,0.0001,2]
[348964695,1736900996313,1800.0,0.0001961,120]
[348964710,1736901031491,-150.0,9.999e-05,2]
[348964711,1736901031501,-500.0,9.999e-05,2]
[348964712,1736901031510,-500.0,9.999e-05,2]
[348964713,1736901031519,-500.0,9.999e-05,2]
[348964714,1736901031529,-401.71,9.999e-05,2]
[348964715,1736901031538,-500.0,9.999e-05,2]
[348964716,1736901031547,-500.0,9.999e-05,2]
[348964717,1736901031556,-208.22952186,9.999e-05,2]
[348964718,1736901031571,-335.33676468,9.999e-05,2]
[348964719,1736901031581,-98.50445621,0.0001,2]
[348964720,1736901031864,-12167.29808063,0.0001,2]
[348964721,1736901031875,-796.7,0.0001,2]
[348964722,1736901031893,-1132.87600634,0.0001,2]
[348964724,1736901031905,-1703.61103245,0.0001,2]
[348964726,1736901031917,-793.07877249,0.0001,2]
[348964727,1736901031935,-328786.43740267,0.0001,2]
[348964728,1736901031946,-1956.94,0.0001,2]
[348964729,1736901031958,-750.37477044,0.0001,2]
[348964732,1736901031976,-241660.76902526,0.0001,2]
[348964734,1736901031985,-243037.17486335,0.0001,2]
[348964736,1736901032004,-10615.0,0.0001,2]
[348964737,1736901032015,-1643.91621459,0.0001,2]
[348964738,1736901032032,-23448.56032052,0.0001,2]
[348964739,1736901032043,-6237.49871909,0.0001,2]
[348964740,1736901032054,-15578.27457381,0.0001,2]
[348964748,1736901037555,-500.0,9.999e-05,2]
[348964749,1736901037565,-485.77822791,9.999e-05,2]
[348964750,1736901037575,-20603.80394381,0.0001,2]
[348964751,1736901037623,-8867.05037544,0.0001,2]
[348964752,1736901037632,-201.7952744,0.0001,2]
[348964753,1736901037642,-873.44224111,0.0001,2]
[348964754,1736901037652,-500.0,0.0001,2]
[348964755,1736901037662,-200.0,0.0001005,2]
[348964756,1736901037671,-150.94,0.00010137,2]
[348964757,1736901037681,-271.18,0.00010191,2]
[348964758,1736901037698,-1000.0,0.00010208,2]
[348964759,1736901037707,-500.0,0.00010273,2]
[348964760,1736901037717,-500.0,0.00010273,2]
[348964761,1736901037726,-500.0,0.00010273,2]
[348964762,1736901037735,-500.0,0.00010273,2]
[348964763,1736901037744,-163.73,0.00010281,2]
[348964764,1736901037754,-912.69,0.00010285,2]
[348964765,1736901037763,-250.0,0.00010325,2]
[348964766,1736901037772,-321.76,0.0001039,2]
[348964767,1736901037782,-250.0,0.00010452,2]
[348964768,1736901037791,-458.95,0.00010525,2]
[348964769,1736901037800,-500.0,0.00010547,2]
[348964770,1736901037809,-500.0,0.00010547,2]
[348964771,1736901037819,-500.0,0.00010547,2]
[348964773,1736901037828,-500.0,0.00010547,2]
[348964775,1736901037837,-418.78,0.00010701,2]
[348964776,1736901037846,-3144.4001,0.000108,2]
[348964777,1736901037856,-982.94985945,0.000108,2]
[348964778,1736901037865,-541.32,0.00010821,2]
[348964779,1736901037874,-500.0,0.00010821,2]
[348964781,1736901037883,-500.0,0.00010821,2]
[348964783,1736901037893,-500.0,0.00010821,2]
[348964785,1736901037903,-203.04,0.000109,2]
[348964787,1736901037915,-150.0,0.00010959,2]
[348964789,1736901037928,-748.95,0.00010999,2]
[348964791,1736901037939,-500.0,0.00010999,2]
[348964793,1736901037948,-667.8,0.00010999,2]
[348964795,1736901037957,-1657.57,0.00010999,2]
[348964797,1736901037966,-774.93,0.00010999,2]
[348964799,1736901037975,-546.59,0.00010999,2]
[348964801,1736901037984,-500.0,0.00010999,2]
[348964803,1736901037995,-500.0,0.00010999,2]
[348964805,1736901038004,-683.98,0.00010999,2]
[348964807,1736901038013,-500.0,0.00010999,2]
[348964809,1736901038022,-584.12,0.00010999,2]
[348964810,1736901038031,-500.0,0.00010999,2]
[348964812,1736901038041,-968.26,0.00010999,2]
[348964814,1736901038050,-1081.5,0.00010999,2]
[348964816,1736901038059,-975.21,0.00010999,2]
[348964818,1736901038068,-2035.83,0.00010999,2]
[348964820,1736901038077,-4239.49,0.00010999,2]
[348964822,1736901038086,-831.53,0.00010999,2]
[348964824,1736901038095,-534.61,0.00010999,2]
[348964826,1736901038103,-1318.85,0.00010999,2]
[348964828,1736901038112,-500.0,0.00010999,2]
[348964830,1736901038121,-1000.0,0.00010999,2]
[348964832,1736901038131,-703.0,0.00010999,2]
[348964834,1736901038140,-852.73,0.00010999,2]
[348964836,1736901038150,-500.0,0.00010999,2]
[348964838,1736901038161,-1027.22,0.00010999,2]
[348964840,1736901038170,-1493.23,0.00010999,2]
[348964842,1736901038179,-500.0,0.00010999,2]
[348964844,1736901038188,-550.0,0.00011,2]
[348964846,1736901038197,-150.78,0.00011025,2]
[348964848,1736901038206,-2452.67248919,0.00011078,2]
[348964850,1736901038217,-170.18,0.00011079,2]
[348964852,1736901038225,-500.0,0.00011095,2]
[348964854,1736901038234,-512.8,0.00011095,2]
[348964855,1736901038243,-437.42,0.00011109,2]
[348964857,1736901038253,-33053.8741346,0.00011138,2]
[348964859,1736901038261,-500.0,0.00011149,2]
[348964861,1736901038271,-500.0,0.00011149,2]
[348964863,1736901038280,-500.0,0.00011149,2]
[348964865,1736901038289,-500.0,0.00011149,2]
[348964867,1736901038299,-2277.93,0.00011149,2]
[348964869,1736901038308,-200.0,0.000112,2]
[348964871,1736901038318,-321.44301265,0.00011254,2]
[348964873,1736901038327,-500.0,0.00011255,2]
[348964875,1736901038336,-500.0,0.00011255,2]
[348964877,1736901038345,-500.0,0.00011255,2]
[348964879,1736901038355,-500.0,0.00011255,2]
[348964881,1736901038364,-500.0,0.00011255,2]
[348964883,1736901038373,-500.0,0.00011255,2]
[348964885,1736901038382,-500.0,0.00011255,2]
[348964887,1736901038391,-500.0,0.00011255,2]
[348964889,1736901038400,-500.0,0.00011255,2]
[348964891,1736901038412,-500.0,0.00011255,2]
[348964893,1736901038421,-500.0,0.00011255,2]
[348964895,1736901038430,-500.0,0.00011255,2]
[348964897,1736901038439,-500.0,0.00011255,2]
[348964899,1736901038448,-500.0,0.00011255,2]
[348964900,1736901038458,-500.0,0.00011255,2]
[348964902,1736901038468,-500.0,0.00011255,2]
[348964904,1736901038477,-500.0,0.00011255,2]
[348964906,1736901038487,-500.0,0.00011255,2]
[348964908,1736901038496,-500.0,0.00011255,2]
[348964910,1736901038506,-500.0,0.00011255,2]
[348964912,1736901038516,-500.0,0.00011255,2]
[348964914,1736901038525,-645.0072589,0.00011255,2]
[348964916,1736901038534,-500.0,0.00011255,2]
[348964918,1736901038544,-500.0,0.00011255,2]
[348964920,1736901038553,-500.0,0.00011255,2]
[348964921,1736901038562,-500.0,0.00011255,2]
[348964923,1736901038571,-500.0,0.00011255,2]
[348964925,1736901038581,-500.0,0.00011255,2]
[348964927,1736901038590,-500.0,0.00011255,2]
[348964929,1736901038601,-500.0,0.00011255,2]
[348964931,1736901038611,-500.0,0.00011255,2]
[348964933,1736901038620,-500.0,0.00011255,2]
[348964935,1736901038629,-500.0,0.00011255,2]
[348964936,1736901038639,-500.0,0.00011255,2]
[348964938,1736901038648,-500.0,0.00011255,2]
[348964940,1736901038659,-500.0,0.00011255,2]
[348964942,1736901038667,-500.0,0.00011255,2]
[348964944,1736901038677,-500.0,0.00011255,2]
[348964946,1736901038687,-500.0,0.00011255,2]
[348964948,1736901038697,-500.0,0.00011255,2]
[348964950,1736901038706,-500.0,0.00011255,2]
[348964952,1736901038715,-500.0,0.00011255,2]
[348964954,1736901038724,-500.0,0.00011255,2]
[348964956,1736901038734,-500.0,0.00011255,2]
[348964958,1736901038744,-500.0,0.00011255,2]
[348964960,1736901038754,-250.38758051,0.00011255,2]
[348964961,1736901038763,-500.0,0.00011255,2]
[348964962,1736901038772,-893.98,0.00011255,2]
[348964963,1736901039002,-500.0,0.00011255,2]
[348964964,1736901039012,-500.0,0.00011255,2]
[348964965,1736901039022,-500.0,0.00011255,2]
[348964966,1736901039032,-709.55,0.00011255,2]
[348964967,1736901039042,-500.0,0.00011255,2]
[348964968,1736901039051,-500.0,0.00011255,2]
[348964969,1736901039061,-500.0,0.00011255,2]
[348964970,1736901039071,-500.0,0.00011255,2]
[348964971,1736901039080,-500.0,0.00011255,2]
[348964972,1736901039091,-500.0,0.00011255,2]
[348964973,1736901039100,-500.0,0.00011255,2]
[348964974,1736901039109,-500.0,0.00011255,2]
[348964975,1736901039119,-500.0,0.00011255,2]
[348964976,1736901039129,-500.0,0.00011255,2]
[348964977,1736901039139,-521.73,0.00011255,2]
[348964978,1736901039149,-1938.07,0.00011255,2]
[348964979,1736901039163,-868.69,0.00011255,2]
[348964980,1736901039172,-1284.73,0.00011255,2]
[348964981,1736901039182,-727.95,0.00011255,2]
[348964982,1736901039191,-3682.71,0.00011255,2]
[348964983,1736901039201,-1120.96,0.00011255,2]
[348964984,1736901039210,-500.0,0.00011256,2]
[348964986,1736901039219,-500.98348293,0.00011256,2]
[348964987,1736901039228,-500.58289113,0.00011256,2]
[348964988,1736901039238,-510.10257132,0.00011256,2]
[348964989,1736901039247,-501.55184241,0.00011256,2]
[348964990,1736901039256,-526.30321025,0.00011256,2]
[348964991,1736901039266,-500.0,0.00011256,2]
[348964992,1736901039275,-501.18855224,0.00011256,2]
[348964993,1736901039285,-179.72887466,0.00011256,2]
[348964994,1736901039295,-500.0,0.00011256,2]
[348964995,1736901039304,-596.52458854,0.00011256,2]
[348964996,1736901039314,-500.0,0.00011256,2]
[348964997,1736901039323,-500.0,0.00011256,2]
[348964998,1736901039332,-502.1104876,0.00011256,2]
[348964999,1736901039341,-502.1991438,0.00011256,2]
[348965000,1736901039351,-502.12897634,0.00011256,2]
[348965002,1736901039360,-370.39174154,0.00011256,2]
[348965004,1736901039369,-501.64386903,0.00011256,2]
[348965005,1736901039379,-500.23523175,0.00011256,2]
[348965007,1736901039389,-500.0,0.00011256,2]
[348965009,1736901039398,-500.0,0.00011256,2]
[348965011,1736901039408,-302.49794824,0.00011256,2]
[348965012,1736901039419,-518.53728837,0.00011256,2]
[348965013,1736901039428,-500.81883492,0.00011256,2]
[348965014,1736901039438,-500.0,0.00011256,2]
[348965015,1736901039447,-373.04814854,0.00011256,2]
[348965016,1736901039457,-500.48975667,0.00011256,2]
[348965017,1736901039467,-500.45967866,0.00011256,2]
[348965018,1736901039476,-500.0,0.00011256,2]
[348965019,1736901039485,-501.04386672,0.00011256,2]
[348965020,1736901039495,-500.0,0.00011256,2]
[348965021,1736901039504,-500.0,0.00011256,2]
[348965022,1736901039513,-500.0,0.00011256,2]
[348965023,1736901039523,-500.73978275,0.00011256,2]
[348965024,1736901039532,-252.71006306,0.00011256,2]
[348965025,1736901039542,-500.88864951,0.00011256,2]
[348965026,1736901039551,-500.0,0.00011256,2]
[348965027,1736901039560,-500.75073556,0.00011256,2]
[348965028,1736901039570,-501.92496728,0.00011256,2]
[348965029,1736901039579,-500.0,0.00011256,2]
[348965030,1736901039588,-500.0,0.00011256,2]
[348965031,1736901039598,-504.12022236,0.00011256,2]
[348965032,1736901039607,-500.0,0.00011256,2]
[348965033,1736901039617,-219.94,0.00011256,2]
[348965034,1736901039627,-500.0,0.00011256,2]
[348965035,1736901039636,-500.0,0.00011256,2]
[348965036,1736901039645,-950.34,0.00011258,2]
[348965037,1736901039654,-748.95,0.00011273,2]
[348965038,1736901039669,-667.8,0.00011273,2]
[348965039,1736901039679,-1657.57,0.00011273,2]
[348965040,1736901039688,-774.93,0.00011273,2]
[348965041,1736901039697,-546.59,0.00011273,2]
[348965042,1736901039707,-500.0,0.00011273,2]
[348965043,1736901039716,-500.0,0.00011273,2]
[348965044,1736901039725,-683.98,0.00011273,2]
[348965045,1736901039734,-500.0,0.00011273,2]
[348965046,1736901039743,-584.12,0.00011273,2]
[348965047,1736901039753,-500.0,0.00011273,2]
[348965048,1736901039762,-968.26,0.00011273,2]
[348965049,1736901039772,-1081.5,0.00011273,2]
[348965050,1736901039781,-975.21,0.00011273,2]
[348965051,1736901039791,-2035.83,0.00011273,2]
[348965052,1736901039801,-4239.49,0.00011273,2]
[348965053,1736901039810,-831.53,0.00011273,2]
[348965054,1736901039820,-534.61,0.00011273,2]
[348965055,1736901039829,-1318.85,0.00011273,2]
[348965056,1736901039839,-500.0,0.00011273,2]
[348965057,1736901039848,-1000.0,0.00011273,2]
[348965058,1736901039858,-703.0,0.00011273,2]
[348965059,1736901039868,-852.73,0.00011273,2]
[348965060,1736901039877,-500.0,0.00011273,2]
[348965061,1736901039886,-1027.22,0.00011273,2]
[348965062,1736901039896,-1493.23,0.00011273,2]
[348965063,1736901039906,-500.0,0.00011273,2]
[348965064,1736901039917,-500.0,0.00011369,2]
[348965065,1736901039928,-567.25,0.00011422,2]
[348965066,1736901039937,-1142.06,0.00011422,2]
[348965067,1736901039946,-3468.24,0.00011422,2]
[348965068,1736901039956,-817.65,0.00011422,2]
[348965069,1736901039967,-500.0,0.00011422,2]
[348965070,1736901039978,-511.83,0.00011422,2]
[348965071,1736901039987,-651.12,0.00011422,2]
[348965072,1736901039999,-500.0,0.00011422,2]
[348965073,1736901040009,-529.053445,0.00011422,2]
[348965074,1736901040018,-500.0,0.00011422,2]
[348965075,1736901040028,-1079.05,0.00011422,2]
[348965076,1736901040038,-500.0,0.00011422,2]
[348965077,1736901040047,-453.034004,0.00011422,2]
[348965078,1736901040057,-2361.0,0.00011422,2]
[348965079,1736901040067,-2322.83,0.00011422,2]
[348965080,1736901040077,-684.36,0.00011422,2]
[348965081,1736901040086,-673.65,0.00011422,2]
[348965082,1736901040095,-500.0,0.00011422,2]
[348965083,1736901040105,-1117.93,0.00011422,2]
[348965084,1736901040115,-500.0,0.00011422,2]
[348965085,1736901040125,-827.0,0.00011422,2]
[348965086,1736901040138,-500.0,0.00011422,2]
[348965087,1736901040149,-500.0,0.00011422,2]
[348965088,1736901040159,-667.66,0.00011422,2]
[348965089,1736901040169,-2252.59,0.00011422,2]
[348965090,1736901040180,-500.0,0.00011423,2]
[348965091,1736901040190,-500.0,0.00011423,2]
[348965092,1736901040201,-500.0,0.00011423,2]
[348965093,1736901040215,-2277.93,0.00011423,2]
[348965094,1736901040225,-5000.0,0.00011428,2]
[348965095,1736901040235,-167.14802507,0.00011429,2]
[348965096,1736901040244,-1666.9414927,0.00011429,2]
[348965097,1736901040254,-173.82,0.00011431,2]
[348965098,1736901040264,-1000.0,0.00011484,2]
[348965099,1736901040273,-580.61,0.00011527,2]
[348965100,1736901040283,-500.0,0.00011527,2]
[348965101,1736901040292,-516.83,0.00011527,2]
[348965102,1736901040301,-830.42,0.00011527,2]
[348965103,1736901040311,-500.0,0.00011527,2]
[348965104,1736901040320,-1199.25,0.00011527,2]
[348965105,1736901040329,-500.0,0.00011527,2]
[348965106,1736901040338,-1019.48,0.00011527,2]
[348965107,1736901040347,-500.0,0.00011527,2]
[348965108,1736901040357,-500.0,0.00011527,2]
[348965109,1736901040366,-642.99,0.00011527,2]
[348965110,1736901040375,-1789.09,0.00011527,2]
[348965111,1736901040384,-510.95,0.00011527,2]
[348965112,1736901040394,-500.0,0.00011527,2]
[348965113,1736901040403,-500.0,0.00011527,2]
[348965114,1736901040413,-691.47,0.00011527,2]
[348965115,1736901040423,-788.9,0.00011527,2]
[348965116,1736901040432,-500.0,0.00011527,2]
[348965117,1736901040442,-1010.31,0.00011527,2]
[348965118,1736901040451,-512.58,0.00011527,2]
[348965119,1736901040461,-1591.39,0.00011527,2]
[348965120,1736901040471,-1127.26,0.00011527,2]
[348965121,1736901040480,-500.0,0.00011528,2]
[348965122,1736901040489,-500.0,0.00011528,2]
[348965123,1736901040499,-500.0,0.00011528,2]
[348965124,1736901040508,-500.0,0.00011528,2]
[348965125,1736901040518,-501.13355545,0.00011528,2]
[348965126,1736901040527,-500.0,0.00011528,2]
[348965127,1736901040536,-500.0,0.00011528,2]
[348965128,1736901040546,-500.0,0.00011528,2]
[348965129,1736901040555,-500.0,0.00011528,2]
[348965130,1736901040564,-501.12103225,0.00011528,2]
[348965131,1736901040574,-500.0,0.00011528,2]
[348965132,1736901040584,-500.63137883,0.00011528,2]
[348965133,1736901040595,-500.0,0.00011528,2]
[348965134,1736901040608,-523.64494053,0.00011528,2]
[348965135,1736901040617,-500.82726261,0.00011528,2]
[348965136,1736901040626,-500.0,0.00011528,2]
[348965137,1736901040636,-500.0,0.00011528,2]
[348965138,1736901040645,-500.0,0.00011528,2]
[348965139,1736901040655,-275.86946429,0.00011528,2]
[348965140,1736901040666,-500.0,0.00011528,2]
[348965141,1736901040675,-500.0,0.00011528,2]
[348965142,1736901040686,-527.66,0.00011528,2]
[348965143,1736901040697,-500.0,0.00011528,2]
[348965144,1736901040707,-500.0,0.00011528,2]
[348965145,1736901040717,-500.0,0.00011528,2]
[348965146,1736901040727,-500.0,0.00011528,2]
[348965147,1736901040739,-500.0,0.00011528,2]
[348965148,1736901040753,-500.0,0.00011528,2]
[348965149,1736901040764,-504.86416809,0.00011528,2]
[348965150,1736901040774,-500.0,0.00011528,2]
[348965151,1736901040783,-500.0,0.00011528,2]
[348965152,1736901040793,-500.0,0.00011528,2]
[348965153,1736901040802,-500.0,0.00011528,2]
[348965154,1736901040811,-500.0,0.00011528,2]
[348965155,1736901040822,-500.0,0.00011528,2]
[348965156,1736901040831,-500.0,0.00011528,2]
[348965157,1736901040841,-515.91330971,0.00011528,2]
[348965158,1736901040851,-500.0,0.00011528,2]
[348965159,1736901040860,-500.0,0.00011528,2]
[348965160,1736901040870,-500.0,0.00011528,2]
[348965161,1736901040879,-500.0,0.00011528,2]
[348965162,1736901040889,-525.50503606,0.00011528,2]
[348965163,1736901040899,-500.0,0.00011528,2]
[348965164,1736901040909,-498.63494219,0.00011528,2]
[348965165,1736901040923,-500.0,0.00011528,2]
[348965166,1736901040932,-500.0,0.00011528,2]
[348965167,1736901040943,-500.0,0.00011528,2]
[348965168,1736901040953,-500.0,0.00011528,2]
[348965169,1736901040963,-500.0,0.00011528,2]
[348965170,1736901040972,-500.0,0.00011528,2]
[348965171,1736901040982,-601.54,0.00011528,2]
[348965172,1736901040994,-500.0,0.00011528,2]
[348965173,1736901041003,-500.0,0.00011528,2]
[348965174,1736901041011,-500.0,0.00011528,2]
[348965175,1736901041022,-500.0,0.00011528,2]
[348965176,1736901041031,-500.0,0.00011528,2]
[348965177,1736901041040,-500.0,0.00011528,2]
[348965178,1736901041050,-500.0,0.00011528,2]
[348965179,1736901041059,-500.0,0.00011528,2]
[348965180,1736901041069,-500.0,0.00011528,2]
[348965181,1736901041079,-500.0,0.00011528,2]
[348965182,1736901041088,-500.0,0.00011528,2]
[348965183,1736901041098,-500.0,0.00011528,2]
[348965184,1736901041107,-500.0,0.00011528,2]
[348965185,1736901041117,-500.0,0.00011528,2]
[348965186,1736901041127,-513.51,0.00011528,2]
[348965187,1736901041137,-500.0,0.00011528,2]
[348965188,1736901041146,-500.0,0.00011528,2]
[348965189,1736901041155,-500.0,0.00011528,2]
[348965190,1736901041165,-500.0,0.00011528,2]
[348965191,1736901041175,-500.0,0.00011528,2]
[348965192,1736901041187,-500.0,0.00011528,2]
[348965193,1736901041197,-500.0,0.00011528,2]
[348965194,1736901041207,-500.0,0.00011528,2]
[348965195,1736901041216,-500.0,0.00011528,2]
[348965196,1736901041226,-500.0,0.00011528,2]
[348965197,1736901041236,-500.0,0.00011528,2]
[348965198,1736901041246,-500.0,0.00011528,2]
[348965199,1736901041256,-524.6292708,0.00011528,2]
[348965200,1736901041266,-500.0,0.00011528,2]
[348965201,1736901041275,-500.0,0.00011528,2]
[348965202,1736901041286,-500.0,0.00011528,2]
[348965203,1736901041295,-500.0,0.00011528,2]
[348965204,1736901041304,-500.54,0.00011528,2]
[348965205,1736901041315,-500.0,0.00011528,2]
[348965206,1736901041325,-500.0,0.00011528,2]
[348965207,1736901041336,-514.49,0.00011528,2]
[348965208,1736901041346,-500.0,0.00011528,2]
[348965209,1736901041356,-500.0,0.00011528,2]
[348965210,1736901041366,-500.0,0.00011528,2]